{"text_format":"3","workbook":"xlsx","n_sheets":5,"sheets":["Звіт про продаж продуктів","Дані за минулі періоди","Прейскурант","Зведення стандартних цін","Зведення тенденцій збуту"],"not_rendered":{"charts":2,"defined_names":6,"pivot_tables":2},"read":"whole","date_system":"1900"}

{"sheet":"Звіт про продаж продуктів","index":0,"n_rows":20,"n_cols":2,"rows_kept":20}
[null,"Звіт про продаж товарів"]
{"$rows_empty":18}
[null,"Товари"]

{"sheet":"Дані за минулі періоди","index":1,"n_rows":33,"n_cols":10,"rows_kept":33}
[null,"Прейскуранти на товари за минулі періоди та продажі"]
[]
[null,"Код товару","Назва товару","Дата ціни","Роздрібна ціна за одиницю товару","Гуртова ціна за одиницю товару*","Продано одиниць (роздріб)","Продано одиниць (гурт)","Загальний обсяг продажів (кількість)","Загальний обсяг продажів (грн.)"]
[null,5,{"$f":"IFERROR(IF(tblЗбут[[#This Row],[Код товару]]<>\"\",VLOOKUP(tblЗбут[Код товару],tblПродукти[[Код товару]:[Назва]],2,FALSE),\"\"),\"Невідомий ідентифікатор продукту\")","v":"Шорти"},"2012-01-01",20,{"v":20,"d":"20₴"},629,{"v":1254,"d":"1,254"},{"$f":"tblЗбут[[#This Row],[Продано одиниць (роздріб)]]+tblЗбут[[#This Row],[Продано одиниць (гурт)]]","v":{"v":1883,"d":"1,883"}},{"$f":"tblЗбут[[#This Row],[Продано одиниць (роздріб)]]*tblЗбут[[#This Row],[Роздрібна ціна за одиницю товару]]+tblЗбут[[#This Row],[Продано одиниць (гурт)]]*tblЗбут[[#This Row],[Гуртова ціна за одиницю товару*]]","v":{"v":37660,"d":"37,660₴"}}]
[null,1,{"$f":"IFERROR(IF(tblЗбут[[#This Row],[Код товару]]<>\"\",VLOOKUP(tblЗбут[Код товару],tblПродукти[[Код товару]:[Назва]],2,FALSE),\"\"),\"Невідомий ідентифікатор продукту\")","v":"Сорочки"},"2012-01-01",88,{"v":54,"d":"54₴"},734,{"v":1427,"d":"1,427"},{"$f":"tblЗбут[[#This Row],[Продано одиниць (роздріб)]]+tblЗбут[[#This Row],[Продано одиниць (гурт)]]","v":{"v":2161,"d":"2,161"}},{"$f":"tblЗбут[[#This Row],[Продано одиниць (роздріб)]]*tblЗбут[[#This Row],[Роздрібна ціна за одиницю товару]]+tblЗбут[[#This Row],[Продано одиниць (гурт)]]*tblЗбут[[#This Row],[Гуртова ціна за одиницю товару*]]","v":{"v":141650,"d":"141,650₴"}}]
[null,2,{"$f":"IFERROR(IF(tblЗбут[[#This Row],[Код товару]]<>\"\",VLOOKUP(tblЗбут[Код товару],tblПродукти[[Код товару]:[Назва]],2,FALSE),\"\"),\"Невідомий ідентифікатор продукту\")","v":"Сандалі"},"2012-01-01",70,{"v":44,"d":"44₴"},744,{"v":1043,"d":"1,043"},{"$f":"tblЗбут[[#This Row],[Продано одиниць (роздріб)]]+tblЗбут[[#This Row],[Продано одиниць (гурт)]]","v":{"v":1787,"d":"1,787"}},{"$f":"tblЗбут[[#This Row],[Продано одиниць (роздріб)]]*tblЗбут[[#This Row],[Роздрібна ціна за одиницю товару]]+tblЗбут[[#This Row],[Продано одиниць (гурт)]]*tblЗбут[[#This Row],[Гуртова ціна за одиницю товару*]]","v":{"v":97972,"d":"97,972₴"}}]
[null,3,{"$f":"IFERROR(IF(tblЗбут[[#This Row],[Код товару]]<>\"\",VLOOKUP(tblЗбут[Код товару],tblПродукти[[Код товару]:[Назва]],2,FALSE),\"\"),\"Невідомий ідентифікатор продукту\")","v":"Парасольки"},"2012-01-01",63,{"v":44,"d":"44₴"},681,{"v":1523,"d":"1,523"},{"$f":"tblЗбут[[#This Row],[Продано одиниць (роздріб)]]+tblЗбут[[#This Row],[Продано одиниць (гурт)]]","v":{"v":2204,"d":"2,204"}},{"$f":"tblЗбут[[#This Row],[Продано одиниць (роздріб)]]*tblЗбут[[#This Row],[Роздрібна ціна за одиницю товару]]+tblЗбут[[#This Row],[Продано одиниць (гурт)]]*tblЗбут[[#This Row],[Гуртова ціна за одиницю товару*]]","v":{"v":109915,"d":"109,915₴"}}]
[null,4,{"$f":"IFERROR(IF(tblЗбут[[#This Row],[Код товару]]<>\"\",VLOOKUP(tblЗбут[Код товару],tblПродукти[[Код товару]:[Назва]],2,FALSE),\"\"),\"Невідомий ідентифікатор продукту\")","v":"Пляшки для води"},"2012-01-01",35,{"v":27,"d":"27₴"},602,{"v":1822,"d":"1,822"},{"$f":"tblЗбут[[#This Row],[Продано одиниць (роздріб)]]+tblЗбут[[#This Row],[Продано одиниць (гурт)]]","v":{"v":2424,"d":"2,424"}},{"$f":"tblЗбут[[#This Row],[Продано одиниць (роздріб)]]*tblЗбут[[#This Row],[Роздрібна ціна за одиницю товару]]+tblЗбут[[#This Row],[Продано одиниць (гурт)]]*tblЗбут[[#This Row],[Гуртова ціна за одиницю товару*]]","v":{"v":70264,"d":"70,264₴"}}]
[null,1,{"$f":"IFERROR(IF(tblЗбут[[#This Row],[Код товару]]<>\"\",VLOOKUP(tblЗбут[Код товару],tblПродукти[[Код товару]:[Назва]],2,FALSE),\"\"),\"Невідомий ідентифікатор продукту\")","v":"Сорочки"},"2012-02-01",55,{"v":44,"d":"44₴"},678,{"v":1515,"d":"1,515"},{"$f":"tblЗбут[[#This Row],[Продано одиниць (роздріб)]]+tblЗбут[[#This Row],[Продано одиниць (гурт)]]","v":{"v":2193,"d":"2,193"}},{"$f":"tblЗбут[[#This Row],[Продано одиниць (роздріб)]]*tblЗбут[[#This Row],[Роздрібна ціна за одиницю товару]]+tblЗбут[[#This Row],[Продано одиниць (гурт)]]*tblЗбут[[#This Row],[Гуртова ціна за одиницю товару*]]","v":{"v":103950,"d":"103,950₴"}}]
[null,2,{"$f":"IFERROR(IF(tblЗбут[[#This Row],[Код товару]]<>\"\",VLOOKUP(tblЗбут[Код товару],tblПродукти[[Код товару]:[Назва]],2,FALSE),\"\"),\"Невідомий ідентифікатор продукту\")","v":"Сандалі"},"2012-02-01",83,{"v":54,"d":"54₴"},753,{"v":1005,"d":"1,005"},{"$f":"tblЗбут[[#This Row],[Продано одиниць (роздріб)]]+tblЗбут[[#This Row],[Продано одиниць (гурт)]]","v":{"v":1758,"d":"1,758"}},{"$f":"tblЗбут[[#This Row],[Продано одиниць (роздріб)]]*tblЗбут[[#This Row],[Роздрібна ціна за одиницю товару]]+tblЗбут[[#This Row],[Продано одиниць (гурт)]]*tblЗбут[[#This Row],[Гуртова ціна за одиницю товару*]]","v":{"v":116769,"d":"116,769₴"}}]
[null,3,{"$f":"IFERROR(IF(tblЗбут[[#This Row],[Код товару]]<>\"\",VLOOKUP(tblЗбут[Код товару],tblПродукти[[Код товару]:[Назва]],2,FALSE),\"\"),\"Невідомий ідентифікатор продукту\")","v":"Парасольки"},"2012-02-01",34,{"v":34,"d":"34₴"},986,{"v":1069,"d":"1,069"},{"$f":"tblЗбут[[#This Row],[Продано одиниць (роздріб)]]+tblЗбут[[#This Row],[Продано одиниць (гурт)]]","v":{"v":2055,"d":"2,055"}},{"$f":"tblЗбут[[#This Row],[Продано одиниць (роздріб)]]*tblЗбут[[#This Row],[Роздрібна ціна за одиницю товару]]+tblЗбут[[#This Row],[Продано одиниць (гурт)]]*tblЗбут[[#This Row],[Гуртова ціна за одиницю товару*]]","v":{"v":69870,"d":"69,870₴"}}]
[null,4,{"$f":"IFERROR(IF(tblЗбут[[#This Row],[Код товару]]<>\"\",VLOOKUP(tblЗбут[Код товару],tblПродукти[[Код товару]:[Назва]],2,FALSE),\"\"),\"Невідомий ідентифікатор продукту\")","v":"Пляшки для води"},"2012-02-01",35,{"v":25,"d":"25₴"},848,{"v":1211,"d":"1,211"},{"$f":"tblЗбут[[#This Row],[Продано одиниць (роздріб)]]+tblЗбут[[#This Row],[Продано одиниць (гурт)]]","v":{"v":2059,"d":"2,059"}},{"$f":"tblЗбут[[#This Row],[Продано одиниць (роздріб)]]*tblЗбут[[#This Row],[Роздрібна ціна за одиницю товару]]+tblЗбут[[#This Row],[Продано одиниць (гурт)]]*tblЗбут[[#This Row],[Гуртова ціна за одиницю товару*]]","v":{"v":59955,"d":"59,955₴"}}]
[null,5,{"$f":"IFERROR(IF(tblЗбут[[#This Row],[Код товару]]<>\"\",VLOOKUP(tblЗбут[Код товару],tblПродукти[[Код товару]:[Назва]],2,FALSE),\"\"),\"Невідомий ідентифікатор продукту\")","v":"Шорти"},"2012-02-01",41,{"v":38,"d":"38₴"},980,{"v":1330,"d":"1,330"},{"$f":"tblЗбут[[#This Row],[Продано одиниць (роздріб)]]+tblЗбут[[#This Row],[Продано одиниць (гурт)]]","v":{"v":2310,"d":"2,310"}},{"$f":"tblЗбут[[#This Row],[Продано одиниць (роздріб)]]*tblЗбут[[#This Row],[Роздрібна ціна за одиницю товару]]+tblЗбут[[#This Row],[Продано одиниць (гурт)]]*tblЗбут[[#This Row],[Гуртова ціна за одиницю товару*]]","v":{"v":90720,"d":"90,720₴"}}]
[null,1,{"$f":"IFERROR(IF(tblЗбут[[#This Row],[Код товару]]<>\"\",VLOOKUP(tblЗбут[Код товару],tblПродукти[[Код товару]:[Назва]],2,FALSE),\"\"),\"Невідомий ідентифікатор продукту\")","v":"Сорочки"},"2012-02-29",27,{"v":18,"d":"18₴"},533,{"v":1936,"d":"1,936"},{"$f":"tblЗбут[[#This Row],[Продано одиниць (роздріб)]]+tblЗбут[[#This Row],[Продано одиниць (гурт)]]","v":{"v":2469,"d":"2,469"}},{"$f":"tblЗбут[[#This Row],[Продано одиниць (роздріб)]]*tblЗбут[[#This Row],[Роздрібна ціна за одиницю товару]]+tblЗбут[[#This Row],[Продано одиниць (гурт)]]*tblЗбут[[#This Row],[Гуртова ціна за одиницю товару*]]","v":{"v":49239,"d":"49,239₴"}}]
[null,2,{"$f":"IFERROR(IF(tblЗбут[[#This Row],[Код товару]]<>\"\",VLOOKUP(tblЗбут[Код товару],tblПродукти[[Код товару]:[Назва]],2,FALSE),\"\"),\"Невідомий ідентифікатор продукту\")","v":"Сандалі"},"2012-02-29",38,{"v":28,"d":"28₴"},952,{"v":1512,"d":"1,512"},{"$f":"tblЗбут[[#This Row],[Продано одиниць (роздріб)]]+tblЗбут[[#This Row],[Продано одиниць (гурт)]]","v":{"v":2464,"d":"2,464"}},{"$f":"tblЗбут[[#This Row],[Продано одиниць (роздріб)]]*tblЗбут[[#This Row],[Роздрібна ціна за одиницю товару]]+tblЗбут[[#This Row],[Продано одиниць (гурт)]]*tblЗбут[[#This Row],[Гуртова ціна за одиницю товару*]]","v":{"v":78512,"d":"78,512₴"}}]
[null,3,{"$f":"IFERROR(IF(tblЗбут[[#This Row],[Код товару]]<>\"\",VLOOKUP(tblЗбут[Код товару],tblПродукти[[Код товару]:[Назва]],2,FALSE),\"\"),\"Невідомий ідентифікатор продукту\")","v":"Парасольки"},"2012-02-29",92,{"v":92,"d":"92₴"},956,{"v":1266,"d":"1,266"},{"$f":"tblЗбут[[#This Row],[Продано одиниць (роздріб)]]+tblЗбут[[#This Row],[Продано одиниць (гурт)]]","v":{"v":2222,"d":"2,222"}},{"$f":"tblЗбут[[#This Row],[Продано одиниць (роздріб)]]*tblЗбут[[#This Row],[Роздрібна ціна за одиницю товару]]+tblЗбут[[#This Row],[Продано одиниць (гурт)]]*tblЗбут[[#This Row],[Гуртова ціна за одиницю товару*]]","v":{"v":204424,"d":"204,424₴"}}]
[null,4,{"$f":"IFERROR(IF(tblЗбут[[#This Row],[Код товару]]<>\"\",VLOOKUP(tblЗбут[Код товару],tblПродукти[[Код товару]:[Назва]],2,FALSE),\"\"),\"Невідомий ідентифікатор продукту\")","v":"Пляшки для води"},"2012-02-29",43,{"v":36,"d":"36₴"},952,{"v":1390,"d":"1,390"},{"$f":"tblЗбут[[#This Row],[Продано одиниць (роздріб)]]+tblЗбут[[#This Row],[Продано одиниць (гурт)]]","v":{"v":2342,"d":"2,342"}},{"$f":"tblЗбут[[#This Row],[Продано одиниць (роздріб)]]*tblЗбут[[#This Row],[Роздрібна ціна за одиницю товару]]+tblЗбут[[#This Row],[Продано одиниць (гурт)]]*tblЗбут[[#This Row],[Гуртова ціна за одиницю товару*]]","v":{"v":90976,"d":"90,976₴"}}]
[null,5,{"$f":"IFERROR(IF(tblЗбут[[#This Row],[Код товару]]<>\"\",VLOOKUP(tblЗбут[Код товару],tblПродукти[[Код товару]:[Назва]],2,FALSE),\"\"),\"Невідомий ідентифікатор продукту\")","v":"Шорти"},"2012-02-29",98,{"v":73,"d":"73₴"},530,{"v":1452,"d":"1,452"},{"$f":"tblЗбут[[#This Row],[Продано одиниць (роздріб)]]+tblЗбут[[#This Row],[Продано одиниць (гурт)]]","v":{"v":1982,"d":"1,982"}},{"$f":"tblЗбут[[#This Row],[Продано одиниць (роздріб)]]*tblЗбут[[#This Row],[Роздрібна ціна за одиницю товару]]+tblЗбут[[#This Row],[Продано одиниць (гурт)]]*tblЗбут[[#This Row],[Гуртова ціна за одиницю товару*]]","v":{"v":157936,"d":"157,936₴"}}]
[null,1,{"$f":"IFERROR(IF(tblЗбут[[#This Row],[Код товару]]<>\"\",VLOOKUP(tblЗбут[Код товару],tblПродукти[[Код товару]:[Назва]],2,FALSE),\"\"),\"Невідомий ідентифікатор продукту\")","v":"Сорочки"},"2012-03-31",38,{"v":28,"d":"28₴"},973,{"v":1415,"d":"1,415"},{"$f":"tblЗбут[[#This Row],[Продано одиниць (роздріб)]]+tblЗбут[[#This Row],[Продано одиниць (гурт)]]","v":{"v":2388,"d":"2,388"}},{"$f":"tblЗбут[[#This Row],[Продано одиниць (роздріб)]]*tblЗбут[[#This Row],[Роздрібна ціна за одиницю товару]]+tblЗбут[[#This Row],[Продано одиниць (гурт)]]*tblЗбут[[#This Row],[Гуртова ціна за одиницю товару*]]","v":{"v":76594,"d":"76,594₴"}}]
[null,2,{"$f":"IFERROR(IF(tblЗбут[[#This Row],[Код товару]]<>\"\",VLOOKUP(tblЗбут[Код товару],tblПродукти[[Код товару]:[Назва]],2,FALSE),\"\"),\"Невідомий ідентифікатор продукту\")","v":"Сандалі"},"2012-03-31",50,{"v":36,"d":"36₴"},672,{"v":1105,"d":"1,105"},{"$f":"tblЗбут[[#This Row],[Продано одиниць (роздріб)]]+tblЗбут[[#This Row],[Продано одиниць (гурт)]]","v":{"v":1777,"d":"1,777"}},{"$f":"tblЗбут[[#This Row],[Продано одиниць (роздріб)]]*tblЗбут[[#This Row],[Роздрібна ціна за одиницю товару]]+tblЗбут[[#This Row],[Продано одиниць (гурт)]]*tblЗбут[[#This Row],[Гуртова ціна за одиницю товару*]]","v":{"v":73380,"d":"73,380₴"}}]
[null,3,{"$f":"IFERROR(IF(tblЗбут[[#This Row],[Код товару]]<>\"\",VLOOKUP(tblЗбут[Код товару],tblПродукти[[Код товару]:[Назва]],2,FALSE),\"\"),\"Невідомий ідентифікатор продукту\")","v":"Парасольки"},"2012-03-31",24,{"v":23,"d":"23₴"},769,{"v":1629,"d":"1,629"},{"$f":"tblЗбут[[#This Row],[Продано одиниць (роздріб)]]+tblЗбут[[#This Row],[Продано одиниць (гурт)]]","v":{"v":2398,"d":"2,398"}},{"$f":"tblЗбут[[#This Row],[Продано одиниць (роздріб)]]*tblЗбут[[#This Row],[Роздрібна ціна за одиницю товару]]+tblЗбут[[#This Row],[Продано одиниць (гурт)]]*tblЗбут[[#This Row],[Гуртова ціна за одиницю товару*]]","v":{"v":55923,"d":"55,923₴"}}]
[null,4,{"$f":"IFERROR(IF(tblЗбут[[#This Row],[Код товару]]<>\"\",VLOOKUP(tblЗбут[Код товару],tblПродукти[[Код товару]:[Назва]],2,FALSE),\"\"),\"Невідомий ідентифікатор продукту\")","v":"Пляшки для води"},"2012-03-31",72,{"v":57,"d":"57₴"},985,{"v":1848,"d":"1,848"},{"$f":"tblЗбут[[#This Row],[Продано одиниць (роздріб)]]+tblЗбут[[#This Row],[Продано одиниць (гурт)]]","v":{"v":2833,"d":"2,833"}},{"$f":"tblЗбут[[#This Row],[Продано одиниць (роздріб)]]*tblЗбут[[#This Row],[Роздрібна ціна за одиницю товару]]+tblЗбут[[#This Row],[Продано одиниць (гурт)]]*tblЗбут[[#This Row],[Гуртова ціна за одиницю товару*]]","v":{"v":176256,"d":"176,256₴"}}]
[null,5,{"$f":"IFERROR(IF(tblЗбут[[#This Row],[Код товару]]<>\"\",VLOOKUP(tblЗбут[Код товару],tblПродукти[[Код товару]:[Назва]],2,FALSE),\"\"),\"Невідомий ідентифікатор продукту\")","v":"Шорти"},"2012-03-31",85,{"v":43,"d":"43₴"},721,{"v":1426,"d":"1,426"},{"$f":"tblЗбут[[#This Row],[Продано одиниць (роздріб)]]+tblЗбут[[#This Row],[Продано одиниць (гурт)]]","v":{"v":2147,"d":"2,147"}},{"$f":"tblЗбут[[#This Row],[Продано одиниць (роздріб)]]*tblЗбут[[#This Row],[Роздрібна ціна за одиницю товару]]+tblЗбут[[#This Row],[Продано одиниць (гурт)]]*tblЗбут[[#This Row],[Гуртова ціна за одиницю товару*]]","v":{"v":122603,"d":"122,603₴"}}]
[null,1,{"$f":"IFERROR(IF(tblЗбут[[#This Row],[Код товару]]<>\"\",VLOOKUP(tblЗбут[Код товару],tblПродукти[[Код товару]:[Назва]],2,FALSE),\"\"),\"Невідомий ідентифікатор продукту\")","v":"Сорочки"},"2012-04-30",91,{"v":65,"d":"65₴"},603,{"v":1226,"d":"1,226"},{"$f":"tblЗбут[[#This Row],[Продано одиниць (роздріб)]]+tblЗбут[[#This Row],[Продано одиниць (гурт)]]","v":{"v":1829,"d":"1,829"}},{"$f":"tblЗбут[[#This Row],[Продано одиниць (роздріб)]]*tblЗбут[[#This Row],[Роздрібна ціна за одиницю товару]]+tblЗбут[[#This Row],[Продано одиниць (гурт)]]*tblЗбут[[#This Row],[Гуртова ціна за одиницю товару*]]","v":{"v":134563,"d":"134,563₴"}}]
[null,2,{"$f":"IFERROR(IF(tblЗбут[[#This Row],[Код товару]]<>\"\",VLOOKUP(tblЗбут[Код товару],tblПродукти[[Код товару]:[Назва]],2,FALSE),\"\"),\"Невідомий ідентифікатор продукту\")","v":"Сандалі"},"2012-04-30",91,{"v":55,"d":"55₴"},892,{"v":1823,"d":"1,823"},{"$f":"tblЗбут[[#This Row],[Продано одиниць (роздріб)]]+tblЗбут[[#This Row],[Продано одиниць (гурт)]]","v":{"v":2715,"d":"2,715"}},{"$f":"tblЗбут[[#This Row],[Продано одиниць (роздріб)]]*tblЗбут[[#This Row],[Роздрібна ціна за одиницю товару]]+tblЗбут[[#This Row],[Продано одиниць (гурт)]]*tblЗбут[[#This Row],[Гуртова ціна за одиницю товару*]]","v":{"v":181437,"d":"181,437₴"}}]
[null,3,{"$f":"IFERROR(IF(tblЗбут[[#This Row],[Код товару]]<>\"\",VLOOKUP(tblЗбут[Код товару],tblПродукти[[Код товару]:[Назва]],2,FALSE),\"\"),\"Невідомий ідентифікатор продукту\")","v":"Парасольки"},"2012-04-30",42,{"v":42,"d":"42₴"},611,{"v":1181,"d":"1,181"},{"$f":"tblЗбут[[#This Row],[Продано одиниць (роздріб)]]+tblЗбут[[#This Row],[Продано одиниць (гурт)]]","v":{"v":1792,"d":"1,792"}},{"$f":"tblЗбут[[#This Row],[Продано одиниць (роздріб)]]*tblЗбут[[#This Row],[Роздрібна ціна за одиницю товару]]+tblЗбут[[#This Row],[Продано одиниць (гурт)]]*tblЗбут[[#This Row],[Гуртова ціна за одиницю товару*]]","v":{"v":75264,"d":"75,264₴"}}]
[null,4,{"$f":"IFERROR(IF(tblЗбут[[#This Row],[Код товару]]<>\"\",VLOOKUP(tblЗбут[Код товару],tblПродукти[[Код товару]:[Назва]],2,FALSE),\"\"),\"Невідомий ідентифікатор продукту\")","v":"Пляшки для води"},"2012-04-30",85,{"v":43,"d":"43₴"},530,{"v":1039,"d":"1,039"},{"$f":"tblЗбут[[#This Row],[Продано одиниць (роздріб)]]+tblЗбут[[#This Row],[Продано одиниць (гурт)]]","v":{"v":1569,"d":"1,569"}},{"$f":"tblЗбут[[#This Row],[Продано одиниць (роздріб)]]*tblЗбут[[#This Row],[Роздрібна ціна за одиницю товару]]+tblЗбут[[#This Row],[Продано одиниць (гурт)]]*tblЗбут[[#This Row],[Гуртова ціна за одиницю товару*]]","v":{"v":89727,"d":"89,727₴"}}]
[null,5,{"$f":"IFERROR(IF(tblЗбут[[#This Row],[Код товару]]<>\"\",VLOOKUP(tblЗбут[Код товару],tblПродукти[[Код товару]:[Назва]],2,FALSE),\"\"),\"Невідомий ідентифікатор продукту\")","v":"Шорти"},"2012-04-30",82,{"v":71,"d":"71₴"},716,{"v":1249,"d":"1,249"},{"$f":"tblЗбут[[#This Row],[Продано одиниць (роздріб)]]+tblЗбут[[#This Row],[Продано одиниць (гурт)]]","v":{"v":1965,"d":"1,965"}},{"$f":"tblЗбут[[#This Row],[Продано одиниць (роздріб)]]*tblЗбут[[#This Row],[Роздрібна ціна за одиницю товару]]+tblЗбут[[#This Row],[Продано одиниць (гурт)]]*tblЗбут[[#This Row],[Гуртова ціна за одиницю товару*]]","v":{"v":147391,"d":"147,391₴"}}]
[null,1,{"$f":"IFERROR(IF(tblЗбут[[#This Row],[Код товару]]<>\"\",VLOOKUP(tblЗбут[Код товару],tblПродукти[[Код товару]:[Назва]],2,FALSE),\"\"),\"Невідомий ідентифікатор продукту\")","v":"Сорочки"},"2012-05-14",34,{"v":31,"d":"31₴"},850,{"v":1548,"d":"1,548"},{"$f":"tblЗбут[[#This Row],[Продано одиниць (роздріб)]]+tblЗбут[[#This Row],[Продано одиниць (гурт)]]","v":{"v":2398,"d":"2,398"}},{"$f":"tblЗбут[[#This Row],[Продано одиниць (роздріб)]]*tblЗбут[[#This Row],[Роздрібна ціна за одиницю товару]]+tblЗбут[[#This Row],[Продано одиниць (гурт)]]*tblЗбут[[#This Row],[Гуртова ціна за одиницю товару*]]","v":{"v":76888,"d":"76,888₴"}}]
[null,2,{"$f":"IFERROR(IF(tblЗбут[[#This Row],[Код товару]]<>\"\",VLOOKUP(tblЗбут[Код товару],tblПродукти[[Код товару]:[Назва]],2,FALSE),\"\"),\"Невідомий ідентифікатор продукту\")","v":"Сандалі"},"2012-05-14",64,{"v":40,"d":"40₴"},876,{"v":1663,"d":"1,663"},{"$f":"tblЗбут[[#This Row],[Продано одиниць (роздріб)]]+tblЗбут[[#This Row],[Продано одиниць (гурт)]]","v":{"v":2539,"d":"2,539"}},{"$f":"tblЗбут[[#This Row],[Продано одиниць (роздріб)]]*tblЗбут[[#This Row],[Роздрібна ціна за одиницю товару]]+tblЗбут[[#This Row],[Продано одиниць (гурт)]]*tblЗбут[[#This Row],[Гуртова ціна за одиницю товару*]]","v":{"v":122584,"d":"122,584₴"}}]
[null,3,{"$f":"IFERROR(IF(tblЗбут[[#This Row],[Код товару]]<>\"\",VLOOKUP(tblЗбут[Код товару],tblПродукти[[Код товару]:[Назва]],2,FALSE),\"\"),\"Невідомий ідентифікатор продукту\")","v":"Парасольки"},"2012-05-14",33,{"v":30,"d":"30₴"},881,{"v":1149,"d":"1,149"},{"$f":"tblЗбут[[#This Row],[Продано одиниць (роздріб)]]+tblЗбут[[#This Row],[Продано одиниць (гурт)]]","v":{"v":2030,"d":"2,030"}},{"$f":"tblЗбут[[#This Row],[Продано одиниць (роздріб)]]*tblЗбут[[#This Row],[Роздрібна ціна за одиницю товару]]+tblЗбут[[#This Row],[Продано одиниць (гурт)]]*tblЗбут[[#This Row],[Гуртова ціна за одиницю товару*]]","v":{"v":63543,"d":"63,543₴"}}]
[null,4,{"$f":"IFERROR(IF(tblЗбут[[#This Row],[Код товару]]<>\"\",VLOOKUP(tblЗбут[Код товару],tblПродукти[[Код товару]:[Назва]],2,FALSE),\"\"),\"Невідомий ідентифікатор продукту\")","v":"Пляшки для води"},"2012-05-14",29,{"v":27,"d":"27₴"},802,{"v":1548,"d":"1,548"},{"$f":"tblЗбут[[#This Row],[Продано одиниць (роздріб)]]+tblЗбут[[#This Row],[Продано одиниць (гурт)]]","v":{"v":2350,"d":"2,350"}},{"$f":"tblЗбут[[#This Row],[Продано одиниць (роздріб)]]*tblЗбут[[#This Row],[Роздрібна ціна за одиницю товару]]+tblЗбут[[#This Row],[Продано одиниць (гурт)]]*tblЗбут[[#This Row],[Гуртова ціна за одиницю товару*]]","v":{"v":65054,"d":"65,054₴"}}]
[null,5,{"$f":"IFERROR(IF(tblЗбут[[#This Row],[Код товару]]<>\"\",VLOOKUP(tblЗбут[Код товару],tblПродукти[[Код товару]:[Назва]],2,FALSE),\"\"),\"Невідомий ідентифікатор продукту\")","v":"Шорти"},"2013-12-11",24,{"v":15,"d":"15₴"},824,{"v":1994,"d":"1,994"},{"$f":"tblЗбут[[#This Row],[Продано одиниць (роздріб)]]+tblЗбут[[#This Row],[Продано одиниць (гурт)]]","v":{"v":2818,"d":"2,818"}},{"$f":"tblЗбут[[#This Row],[Продано одиниць (роздріб)]]*tblЗбут[[#This Row],[Роздрібна ціна за одиницю товару]]+tblЗбут[[#This Row],[Продано одиниць (гурт)]]*tblЗбут[[#This Row],[Гуртова ціна за одиницю товару*]]","v":{"v":49686,"d":"49,686₴"}}]

{"sheet":"Прейскурант","index":2,"n_rows":18,"n_cols":6,"rows_kept":18,"merged":[[15,1,15,5]]}
[null,"Прейскурант на товари"]
[]
[null,"Видавництво «Фабрика пригод»"]
[null,"вул. Маркова, 45"]
[null,"3345 м. Калуш"]
[null,"Тел: (425) 555-0150"]
[null,"Факс: (425) 555-0152"]
[null,"www.adventure-works.com",{"$nulls":3},"Останнє оновлення 15.08.2013"]
[]
[null,"Код товару","Назва","Опис","Роздрібна ціна за одиницю товару","Гуртова ціна за одиницю товару*"]
[null,1,"Сорочки","Відчувайте прохолоду протягом усього літа в наших гофрованих сорочках із 100% бавовни.",{"v":22,"d":"22₴"},{"v":15,"d":"15.00₴"}]
[null,2,"Сандалі","Взуйте наші сандалі підвищеної міцності на каучуковій підошві та легко пройдіть по найгарячішому піску.",{"v":10,"d":"10₴"},{"v":6,"d":"6.00₴"}]
[null,3,"Парасольки","Сховайтеся від сонця під нашими надзвичайно великим пляжними парасольками, які блокують 96% шкідливих УФ променів.",{"v":30,"d":"30₴"},{"v":20,"d":"20.00₴"}]
[null,4,"Пляшки для води","Утамуйте спрагу водою ідеальної температури з наших термоізольованих пляшок для води.",{"v":7,"d":"7₴"},{"v":5,"d":"5.00₴"}]
[null,5,"Шорти","У наших нейлонових шортах, що сохнуть за кілька секунд, можна вийти з води й відразу сісти в автомобіль.",{"v":15,"d":"15₴"},{"v":8,"d":"8.00₴"}]
[]
[{"$nulls":5},"Зателефонуйте нам, щоб отримати відомості про продукцію, відсутню у списку."]
[{"$nulls":5},"*Гуртові ціни застосовуються до кількості товару у 12 одиниць і більше."]

{"sheet":"Зведення стандартних цін","index":3,"n_rows":10,"n_cols":4,"rows_kept":10,"hidden":true,"merged":[[1,1,1,3]]}
[null,"Зведена таблиця стандартних цін"]
[null,"Цей аркуш має бути прихований. Змінення зведеної таблиці нижче може призвести до помилок у звіті про продаж товарів. "]
[null,"Вибраний товар:",{"$f":"IF(LEN(B5),B5,\"None\")","v":"Парасольки"}]
[null,"Назва товару","Роздрібна ціна за одиницю товару","Сума загальних продажів (кількість)"]
[null,"Парасольки",{"v":24,"d":"24₴"},2398]
[null,null,{"v":33,"d":"33₴"},2030]
[null,null,{"v":34,"d":"34₴"},2055]
[null,null,{"v":42,"d":"42₴"},1792]
[null,null,{"v":63,"d":"63₴"},2204]
[null,null,{"v":92,"d":"92₴"},2222]

{"sheet":"Зведення тенденцій збуту","index":4,"n_rows":9,"n_cols":3,"rows_kept":9,"hidden":true,"merged":[[1,1,1,3]]}
[null,"Зведена таблиця тенденцій збуту"]
[null,"Цей аркуш має бути прихований. Змінення зведеної таблиці нижче може призвести до помилок у звіті про продаж товарів. "]
[null,"Сума загальних продажів (кількість)","Назва товару"]
[null,"Дата ціни","Парасольки"]
[null,"Січ",2204]
[null,"Лют",4277]
[null,"Бер",2398]
[null,"Кві",1792]
[null,"Тра",2030]